bitfinex/quotes_BTCUSD_20241116
["timestamp","ask_amount","ask_price","bid_price","bid_amount"]
[1731720971000,0.00383067,91223.0,91222.0,0.0007573]
[1731720973035,0.00069959,91223.0,91222.0,0.0007573]
[1731720973442,0.00383067,91223.0,91222.0,0.0007573]
[1731720973649,0.00069959,91223.0,91222.0,0.0007573]
[1731720973864,0.00383067,91223.0,91222.0,0.0007573]
[1731720974077,0.11032059,91223.0,91222.0,0.0007573]
[1731720974279,0.11345157,91223.0,91222.0,0.0007573]
[1731720974654,0.00383057,91223.0,91222.0,0.0007573]
[1731720975413,0.00383037,91223.0,91222.0,0.0007573]
[1731720975677,0.11345137,91223.0,91222.0,0.0007573]
[1731720975876,0.00383037,91223.0,91222.0,0.1103793]
[1731720976500,0.00069959,91223.0,91222.0,0.1103793]
[1731720978119,0.00069959,91223.0,91222.0,0.3296233]
[1731720978339,0.00069959,91223.0,91222.0,0.0007573]
[1731720978558,0.00069959,91223.0,91222.0,0.1103793]
[1731720978768,0.00539577,91223.0,91222.0,0.0007573]
[1731720978973,0.00069959,91223.0,91222.0,0.1103793]
[1731720979385,0.00487397,91223.0,91222.0,0.1103793]
[1731720980015,0.00487397,91223.0,91222.0,0.0007573]
[1731720980228,0.00658837,91223.0,91222.0,0.1103793]
[1731720981295,0.00241399,91223.0,91222.0,0.1103793]
[1731720987282,0.0017144,91223.0,91222.0,0.1103793]
[1731720987510,0.00241399,91223.0,91222.0,0.1103793]
[1731720988796,0.0017144,91223.0,91222.0,0.1103793]
[1731720989007,0.00241399,91223.0,91218.0,0.005]
[1731720989469,0.00241399,91223.0,91222.0,0.109622]
[1731720990390,0.00241399,91223.0,91215.0,0.26321088]
[1731720990391,0.08111399,91223.0,91215.0,0.04395188]
[1731720990620,0.08111399,91223.0,91216.0,0.219259]
[1731720990621,0.19543433,91223.0,91216.0,0.219259]
[1731720990832,0.19543433,91223.0,91212.0,0.02150248]
[1731720990833,0.00069959,91216.0,91212.0,0.02150248]
[1731720991097,0.11032959,91216.0,91212.0,0.02150248]
[1731720991305,0.00468669,91215.0,91212.0,0.02150248]
[1731720991542,0.00468669,91215.0,91213.0,0.109632]
[1731720991767,0.00468669,91215.0,91212.0,0.02150248]
[1731720991977,0.11431769,91215.0,91212.0,0.02150248]
[1731720992447,0.00468669,91215.0,91213.0,0.109633]
[1731720992680,0.00468669,91215.0,91212.0,0.02150248]
[1731720992894,0.00069959,91216.0,91212.0,0.02150248]
[1731720993133,0.00468356,91214.0,91212.0,0.13113548]
[1731720993367,0.00069959,91216.0,91215.0,0.109631]
[1731720993582,0.00069959,91216.0,91212.0,0.02150248]
[1731720994043,0.00468514,91215.0,91212.0,0.02150248]
[1731720994294,0.00468514,91215.0,91214.0,0.109632]
[1731720994737,0.00468514,91215.0,91214.0,0.11992039]
[1731720995168,0.00468514,91215.0,91214.0,0.01028839]
[1731720996027,0.00468514,91215.0,91212.0,0.13113648]
[1731720996293,0.00468514,91215.0,91213.0,0.01028951]
[1731720996509,0.00468514,91215.0,91210.0,0.04400106]
[1731720996730,0.00468514,91215.0,91211.0,0.109635]
[1731720996936,0.00468514,91215.0,91207.0,0.02323348]
[1731720996937,0.00468514,91215.0,91208.0,0.219279]
[1731720997151,0.00468514,91215.0,91210.0,0.109636]
[1731720997387,0.00468514,91215.0,91208.0,0.26271216]
[1731720997600,0.219266,91213.0,91207.0,0.000858]
[1731720997821,0.00467962,91212.0,91207.0,0.110497]
[1731720998028,0.00069959,91214.0,91207.0,0.000858]
[1731720998276,0.11431409,91211.0,91207.0,0.000858]
[1731720998473,0.109635,91212.0,91207.0,0.000858]
[1731720998754,0.00467651,91210.0,91207.0,0.000858]
[1731720998991,0.00467809,91211.0,91207.0,0.110498]
[1731720999194,0.00467476,91209.0,91207.0,0.110498]
[1731720999412,0.11431218,91208.0,91207.0,0.000858]
[1731720999623,0.19301218,91208.0,91207.0,0.000858]
[1731721001443,0.19371177,91208.0,91207.0,0.000858]
[1731721002281,0.37317432,91208.0,91207.0,0.000858]
[1731721013011,0.37817432,91208.0,91207.0,0.000858]
[1731721013477,0.38017432,91208.0,91207.0,0.000858]
[1731721013688,0.37817432,91208.0,91207.0,0.000858]
[1731721015215,0.4234408,91208.0,91207.0,0.000858]
[1731721018698,0.005,91190.0,91174.0,0.0980756]
[1731721018919,0.132687,91168.0,91167.0,0.16440698]
[1731721019246,0.00069959,91170.0,91167.0,0.16440698]
[1731721019332,0.109687,91168.0,91167.0,0.16440698]
[1731721019537,0.109695,91162.0,91154.0,0.01143943]
[1731721019762,0.00069959,91164.0,91154.0,0.01143943]
[1731721019985,0.00474049,91161.0,91155.0,0.109702]
[1731721020231,0.16440698,91160.0,91154.0,0.01143943]
[1731721020469,0.00069959,91159.0,91152.0,0.109706]
[1731721020678,0.00069959,91159.0,91143.0,0.005]
[1731721020892,0.00472415,91158.0,91151.0,0.109707]
[1731721021119,0.109704,91154.0,91151.0,0.02185519]
[1731721021346,0.109702,91156.0,91151.0,0.02185519]
[1731721021577,0.00471514,91153.0,91151.0,0.02185519]
[1731721021816,0.00069959,91153.0,91150.0,7e-05]
[1731721022057,0.109708,91151.0,91150.0,7e-05]
[1731721022504,0.11511956,91151.0,91150.0,7e-05]
[1731721022716,0.00541156,91151.0,91150.0,7e-05]
[1731721023228,0.13141156,91151.0,91150.0,7e-05]
[1731721023446,0.37318211,91151.0,91150.0,7e-05]
[1731721025901,0.11447411,91151.0,91150.0,7e-05]
[1731721026118,0.22418211,91151.0,91150.0,7e-05]
[1731721028339,0.00541156,91151.0,91150.0,7e-05]
[1731721028830,0.22418211,91151.0,91150.0,7e-05]
[1731721029042,0.32478211,91151.0,91150.0,7e-05]
[1731721029248,0.32478211,91151.0,91150.0,0.0009275]
[1731721032150,0.11441997,91151.0,91150.0,0.0009275]
[1731721032359,0.11511956,91151.0,91150.0,0.0009275]
[1731721033593,0.00471197,91151.0,91150.0,0.0009275]
[1731721033903,0.00069959,91151.0,91150.0,0.0009275]
[1731721034110,0.00470961,91151.0,91150.0,0.0009275]
[1731721034333,0.00069959,91159.0,91150.0,0.0009275]
[1731721034546,0.16440698,91158.0,91151.0,0.219416]
[1731721034759,0.16440698,91158.0,91157.0,0.1097]
[1731721035212,0.27346953,91158.0,91150.0,0.15575272]
[1731721035426,0.00069959,91157.0,91150.0,0.0009275]
[1731721035638,0.00069959,91159.0,91158.0,0.109699]
[1731721037611,0.00575859,91159.0,91153.0,0.219411]
[1731721037830,0.00069959,91159.0,91154.0,0.109704]
[1731721038038,0.00069959,91159.0,91158.0,0.109699]
[1731721038453,0.00069959,91160.0,91155.0,0.0819]
[1731721038697,0.00069959,91160.0,91159.0,0.109698]
[1731721040058,0.00069959,91166.0,91157.0,0.02158773]
[1731721040287,0.00069959,91170.0,91157.0,0.02158773]
[1731721040505,0.24200698,91186.0,91184.0,0.109667]
[1731721040748,0.24200698,91186.0,91179.0,0.109674]
[1731721040749,0.00069959,91180.0,91179.0,0.109674]
[1731721041206,0.00622165,91180.0,91179.0,0.109674]
[1731721041666,0.00552206,91180.0,91179.0,0.109674]
[1731721042133,0.001715,91187.0,91172.0,0.219365]
[1731721042134,0.00241459,91187.0,91186.0,0.109665]
[1731721043497,0.001715,91187.0,91186.0,0.109665]
[1731721047288,0.001715,91187.0,91186.0,0.47274905]
[1731721047527,0.001715,91187.0,91186.0,0.5171148]
[1731721050884,0.001715,91187.0,91186.0,0.52141521]
[1731721051123,0.0017144,91219.0,91186.0,0.52141521]
[1731721051124,0.0017144,91219.0,91206.0,0.2636625]
[1731721051359,0.0017144,91219.0,91206.0,0.37272505]
[1731721051592,0.17110943,91207.0,91206.0,0.37272505]
[1731721051819,0.0017144,91219.0,91208.0,0.114639]
[1731721051937,0.0017144,91219.0,91208.0,0.32800196]
[1731721054879,0.16283598,91221.0,91220.0,0.114625]
[1731721055093,0.16283598,91221.0,91220.0,0.2636465]
[1731721055296,0.0758,91239.0,91222.0,0.109622]
[1731721055297,0.07649959,91239.0,91222.0,0.109622]
[1731721055502,0.0758,91245.0,91222.0,0.45378496]
[1731721055722,0.16510657,91246.0,91222.0,0.45378496]
[1731721056753,0.16510657,91246.0,91222.0,0.49751318]
[1731721058402,0.16440698,91246.0,91222.0,0.49951318]
[1731721059110,0.16440698,91246.0,91222.0,0.521647]
[1731721059820,0.16510657,91246.0,91222.0,0.519647]
[1731721060716,0.16440698,91246.0,91222.0,0.519647]
[1731721060939,0.16510657,91246.0,91222.0,0.519647]
[1731721062423,0.00069959,91245.0,91222.0,0.519647]
[1731721063548,0.00069959,91245.0,91222.0,0.393847]
[1731721063956,0.0758,91234.0,91222.0,0.393847]
[1731721064636,0.0758,91234.0,91222.0,0.388847]
[1731721064875,0.0758,91234.0,91222.0,0.393847]
[1731721067677,0.0758,91234.0,91222.0,0.27978445]
[1731721068121,0.0758,91234.0,91222.0,0.28992782]
[1731721068763,0.0809,91243.0,91222.0,0.40399037]
[1731721068973,0.0809,91243.0,91222.0,0.40599037]
[1731721069605,0.0809,91243.0,91222.0,0.48559908]
[1731721071549,0.0809,91243.0,91222.0,0.55302058]
[1731721073734,0.0809,91243.0,91222.0,0.40399908]
[1731721073975,0.0809,91243.0,91222.0,0.55302058]
[1731721077836,0.0809,91243.0,91222.0,0.55502058]
[1731721078053,0.0809,91243.0,91222.0,0.55302058]
[1731721079463,0.0809,91243.0,91229.0,0.005]
[1731721079674,0.0809,91243.0,91235.0,0.109607]
[1731721079875,0.0809,91243.0,91235.0,0.11975908]
[1731721080311,0.0809,91243.0,91242.0,0.109598]
[1731721080514,0.0809,91243.0,91242.0,0.11975008]
[1731721081334,0.0809,91243.0,91242.0,0.1198102]
[1731721081989,0.09084996,91243.0,91242.0,0.1198102]
[1731721082204,0.09084996,91243.0,91242.0,0.109598]
[1731721084293,0.09084996,91243.0,91242.0,0.15486055]
[1731721084900,0.09084996,91243.0,91236.0,0.219211]
[1731721085086,0.08159959,91240.0,91239.0,0.109602]
[1731721085739,0.09083212,91240.0,91239.0,0.109602]
[1731721089122,0.00923253,91240.0,91239.0,0.109602]
[1731721089323,0.00069959,91246.0,91239.0,0.219204]
[1731721089542,0.00069959,91246.0,91245.0,0.109595]
[1731721090405,0.00069959,91246.0,91244.0,0.219192]
[1731721090613,0.00069959,91246.0,91245.0,0.109595]
[1731721092975,0.08291339,91247.0,91246.0,0.109593]
[1731721093934,0.0822138,91247.0,91246.0,0.109593]
[1731721094138,0.08291339,91247.0,91246.0,0.109593]
[1731721098098,0.0822138,91247.0,91246.0,0.109593]
[1731721099386,0.08291339,91247.0,91246.0,0.109593]
[1731721099614,0.08291339,91247.0,91240.0,0.19599799]
[1731721099615,0.1262,91245.0,91239.0,0.09799899]
[1731721099833,0.0805,91243.0,91239.0,0.09799899]
[1731721100035,0.0805,91243.0,91237.0,0.14699849]
[1731721100036,0.0805,91243.0,91242.0,0.109598]
[1731721106628,0.09073052,91243.0,91242.0,0.109598]
[1731721106855,0.01023052,91243.0,91242.0,0.109598]
[1731721107332,0.0017138,91247.0,91246.0,0.109593]
[1731721107553,0.01195947,91247.0,91246.0,0.109593]
[1731721108500,0.0017138,91247.0,91246.0,0.109593]
[1731721110824,0.13329559,91244.0,91243.0,0.09810023]
[1731721111039,0.00069959,91235.0,91234.0,0.09810023]
[1731721111254,0.24246214,91235.0,91233.0,0.09810023]
[1731721111477,0.109609,91233.0,91232.0,0.09810023]
[1731721111753,0.114611,91231.0,91230.0,0.09810023]
[1731721111962,0.18301959,91224.0,91220.0,0.078]
[1731721112193,0.37508214,91224.0,91220.0,0.078]
[1731721113118,0.13332159,91222.0,91221.0,1e-08]
[1731721113363,0.00069959,91202.0,91199.0,0.09810023]
[1731721113599,0.005,91210.0,91196.0,0.16440698]
[1731721113600,0.00069959,91197.0,91196.0,0.16440698]
[1731721113820,0.023,91200.0,91193.0,0.109656]
[1731721113821,0.00069959,91194.0,91193.0,0.109657]
[1731721115180,0.00069959,91194.0,91193.0,0.13166366]
[1731721115910,0.00069959,91194.0,91193.0,0.109657]
[1731721117240,0.00069959,91196.0,91195.0,0.109655]
[1731721118128,0.00116839,91196.0,91195.0,0.109655]
[1731721118344,0.01071727,91196.0,91195.0,0.109655]
[1731721121481,0.6579272,91245.0,91230.0,0.00429132]
[1731721121714,0.0017138,91247.0,91196.0,0.16271727]
[1731721121715,0.0017138,91247.0,91246.0,0.209593]
[1731721121938,0.0017138,91247.0,91246.0,0.24493489]
[1731721122384,0.0017138,91247.0,91246.0,0.209593]
[1731721123307,0.0017138,91247.0,91246.0,0.27647888]
[1731721123533,0.0017138,91247.0,91246.0,0.2807702]
[1731721126194,0.0017138,91247.0,91246.0,0.0711772]
[1731721126433,0.0017138,91247.0,91246.0,0.1807702]
[1731721126656,0.0017138,91247.0,91246.0,0.17647888]
[1731721126891,0.0017138,91247.0,91246.0,0.13099058]
[1731721128190,0.0017138,91247.0,91246.0,0.23099058]
[1731721133205,0.0017138,91247.0,91246.0,0.13099058]
[1731721133612,0.0017138,91247.0,91246.0,0.23099058]
[1731721139788,0.0017138,91247.0,91246.0,0.34434445]
[1731721140851,0.0017138,91247.0,91246.0,0.34005313]
[1731721142422,0.0017138,91247.0,91246.0,0.34434445]
[1731721143596,0.0479,91273.0,91272.0,0.109562]
[1731721143597,0.0777,91273.0,91272.0,0.109562]
[1731721143815,0.16438987,91274.0,91263.0,0.3585945]
[1731721143816,0.16438987,91264.0,91263.0,0.3585945]
[1731721144034,0.16438987,91274.0,91273.0,0.109561]
[1731721144452,0.07840868,91282.0,91278.0,0.109555]
[1731721144961,0.0777,91282.0,91278.0,0.109555]
[1731721148074,0.0777,91282.0,91270.0,0.109565]
[1731721148075,0.00070868,91271.0,91270.0,0.109565]
[1731721151204,0.00070868,91271.0,91264.0,0.219144]
[1731721151205,0.00070868,91262.0,91257.0,0.21916]
[1731721151436,0.00070868,91258.0,91249.0,0.21918]
[1731721151669,0.0789,91264.0,91247.0,0.16438987]
[1731721151670,0.00070868,91255.0,91254.0,0.109584]
[1731721152525,0.00070868,91255.0,91254.0,0.209584]
[1731721153859,0.00070868,91260.0,91259.0,0.109578]
[1731721154316,0.00693086,91260.0,91259.0,0.109578]
[1731721154561,0.00070868,91262.0,91261.0,0.109575]
[1731721154991,0.00070868,91260.0,91259.0,0.328732]
[1731721155455,0.07960868,91274.0,91255.0,0.219166]
[1731721155665,0.07960868,91274.0,91273.0,0.109561]
[1731721156784,0.0789,91274.0,91273.0,0.109561]
[1731721156995,0.0789,91274.0,91266.0,0.219137]
[1731721156996,0.001716,91279.0,91278.0,0.109555]
[1731721162841,0.00070868,91275.0,91274.0,0.10956]
[1731721163043,0.00070868,91275.0,91270.0,0.109565]
[1731721163044,0.0006095,91271.0,91270.0,0.109565]
[1731721163263,0.0006095,91271.0,91268.0,0.109567]
[1731721163264,0.0006095,91269.0,91268.0,0.109567]
[1731721163477,0.0006095,91269.0,91248.0,0.1540215]
[1731721163478,0.0006095,91266.0,91258.0,0.26340475]
[1731721163697,0.0006095,91261.0,91260.0,0.109577]
[1731721164640,0.023,91270.0,91252.0,0.109586]
[1731721164641,0.0006095,91253.0,91252.0,0.109586]
[1731721166809,0.0006095,91253.0,91249.0,0.21918]
[1731721167229,0.0006095,91253.0,91250.0,0.1]
[1731721167676,0.0006095,91253.0,91252.0,0.109586]
[1731721168335,0.0781095,91253.0,91252.0,0.109586]
[1731721168566,0.0781095,91253.0,91249.0,0.21918]
[1731721168801,0.0781095,91253.0,91252.0,0.109586]
[1731721169261,0.0781095,91253.0,91243.0,0.02188874]
[1731721169262,0.0006095,91252.0,91243.0,0.02188874]
[1731721169474,0.0006095,91252.0,91251.0,0.109587]
[1731721171009,0.0006095,91252.0,91250.0,0.109588]
[1731721171438,0.0006095,91252.0,91251.0,0.109587]
[1731721172951,0.0781095,91253.0,91252.0,0.109586]
[1731721175083,0.08520586,91253.0,91247.0,0.000857]
[1731721175298,0.0006095,91249.0,91248.0,0.328773]
[1731721175763,0.0006095,91249.0,91248.0,0.109591]
[1731721175776,0.08459636,91253.0,91247.0,0.110449]
[1731721175777,0.0006095,91248.0,91247.0,0.110449]
[1731721178345,0.0006095,91248.0,91247.0,0.000857]
[1731721178779,0.00768179,91248.0,91247.0,0.000857]
[1731721178983,0.0006095,91248.0,91247.0,0.110449]
[1731721179194,0.00768179,91248.0,91247.0,0.110449]
[1731721179431,0.0006095,91248.0,91247.0,0.110449]
[1731721179652,0.00768102,91248.0,91247.0,0.110449]
[1731721179867,0.0006095,91248.0,91247.0,0.110449]
[1731721180080,0.00768102,91248.0,91247.0,0.110449]
[1731721180293,0.0006095,91248.0,91247.0,0.110449]
[1731721180969,0.00768102,91248.0,91247.0,0.110449]
[1731721181216,0.0006095,91248.0,91247.0,0.110449]
[1731721181424,0.00768102,91248.0,91247.0,0.110449]
[1731721182056,0.0006095,91248.0,91247.0,0.110449]
[1731721182267,0.00768102,91248.0,91247.0,0.110449]
[1731721182476,0.0006095,91248.0,91247.0,0.110449]
[1731721182715,0.00767964,91248.0,91247.0,0.110449]
[1731721182943,0.0006095,91248.0,91247.0,0.110449]
[1731721185005,0.0006095,91248.0,91247.0,0.000857]
[1731721185703,0.11727098,91248.0,91247.0,0.000857]
[1731721185954,0.0006095,91248.0,91247.0,0.000857]
[1731721188632,0.0006095,91215.0,91214.0,0.109632]
[1731721193714,0.109624,91221.0,91200.0,0.219297]
[1731721193715,0.0006095,91214.0,91200.0,0.219297]
[1731721193924,0.0006095,91210.0,91209.0,0.109638]
[1731721194343,0.0006095,91210.0,91207.0,0.219279]
[1731721194344,0.0006095,91208.0,91207.0,0.10964]
[1731721194966,0.00749552,91208.0,91207.0,0.10964]
[1731721195204,0.0006095,91208.0,91207.0,0.10964]
[1731721196900,0.0006095,91208.0,91207.0,0.110497]
[1731721200202,0.0006095,91214.0,91207.0,0.000857]
[1731721200413,0.0006095,91215.0,91214.0,0.109632]
[1731721202079,0.0006095,91225.0,91213.0,0.1490215]
[1731721202295,0.16438987,91224.0,91223.0,0.109621]
[1731721202536,0.17133356,91224.0,91223.0,0.109621]
[1731721202770,0.00694369,91224.0,91223.0,0.109621]
[1731721203418,0.00694369,91224.0,91221.0,0.1490215]
[1731721203419,0.16438987,91237.0,91226.0,0.1]
[1731721203664,0.16438987,91237.0,91236.0,0.109605]
[1731721204097,0.0006095,91241.0,91230.0,0.3682475]
[1731721204098,0.0006095,91241.0,91234.0,0.219214]
[1731721204329,0.0006095,91241.0,91240.0,0.109601]
[1731721204980,0.0006095,91241.0,91238.0,0.219206]
[1731721205408,0.0006095,91241.0,91240.0,0.109601]
[1731721212048,0.0006095,91241.0,91237.0,0.109603]
[1731721212505,0.38357687,91247.0,91231.0,0.24087992]
[1731721212506,0.0006095,91236.0,91231.0,0.02165792]
[1731721212738,0.0006095,91236.0,91235.0,0.109606]
[1731721213382,0.0006095,91231.0,91229.0,0.219226]
[1731721213594,0.0006095,91224.0,91218.0,0.1]
[1731721213808,0.0006095,91224.0,91223.0,0.110478]
[1731721219559,0.0006095,91224.0,91223.0,0.000857]
[1731721219560,0.36619205,91224.0,91223.0,0.000857]
[1731721220012,0.37342134,91224.0,91223.0,0.000857]
[1731721220216,0.26380134,91224.0,91223.0,0.000857]
[1731721221069,0.26551594,91224.0,91223.0,0.000857]
[1731721224346,0.37513594,91224.0,91223.0,0.000857]
[1731721225197,0.26551594,91224.0,91223.0,0.000857]
[1731721225857,0.37513594,91224.0,91223.0,0.000857]
[1731721226488,0.26551594,91224.0,91223.0,0.000857]
[1731721228018,0.37513594,91224.0,91223.0,0.000857]
[1731721228230,0.26551594,91224.0,91223.0,0.000857]
[1731721228439,0.38013594,91224.0,91223.0,0.000857]
[1731721232100,0.38535631,91224.0,91223.0,0.000857]
[1731721234870,0.38735631,91224.0,91223.0,0.000857]
[1731721235920,0.38535631,91224.0,91223.0,0.000857]
[1731721239680,0.53437781,91224.0,91223.0,0.000857]
[1731721241016,0.38535631,91224.0,91223.0,0.000857]
[1731721242745,0.38035631,91224.0,91223.0,0.000857]
[1731721242968,0.38535631,91224.0,91223.0,0.000857]
[1731721243666,0.38035631,91224.0,91223.0,0.000857]
[1731721244416,0.38535631,91224.0,91223.0,0.000857]
[1731721244812,0.38035631,91224.0,91223.0,0.000857]
[1731721245781,0.38535631,91224.0,91223.0,0.000857]
[1731721246805,0.38035631,91224.0,91223.0,0.000857]
[1731721247049,0.38535631,91224.0,91223.0,0.000857]
[1731721247223,0.38035631,91224.0,91223.0,0.000857]
[1731721247427,0.38535631,91224.0,91223.0,0.000857]
[1731721251849,0.38513594,91224.0,91223.0,0.000857]
[1731721253549,0.26551594,91224.0,91223.0,0.110478]
[1731721253736,0.21821594,91224.0,91223.0,0.110478]
[1731721254675,0.21821594,91224.0,91223.0,0.000857]
[1731721254904,0.21821594,91224.0,91223.0,0.110478]
[1731721256199,0.22506346,91224.0,91223.0,0.110478]
[1731721256959,0.22506346,91224.0,91223.0,0.000857]
[1731721257524,0.22506346,91224.0,91223.0,0.110478]
[1731721258233,0.11861594,91224.0,91223.0,0.110478]
[1731721258438,0.14161594,91224.0,91223.0,0.110478]
[1731721261353,0.00955339,91224.0,91223.0,0.110478]
[1731721261558,0.0023241,91224.0,91223.0,0.110478]
[1731721267204,0.0253241,91224.0,91223.0,0.110478]
[1731721267869,0.03327744,91224.0,91223.0,0.110478]
[1731721268096,0.21893999,91224.0,91223.0,0.000857]
[1731721268305,0.21098665,91224.0,91223.0,0.000857]
[1731721268522,0.21893999,91224.0,91223.0,0.110478]
[1731721270478,0.21893999,91224.0,91223.0,0.000857]
[1731721270699,0.21098665,91224.0,91223.0,0.110478]
[1731721271147,0.21893999,91224.0,91223.0,0.110478]
[1731721271607,0.21898352,91224.0,91223.0,0.110478]
[1731721271812,0.21898352,91224.0,91223.0,0.000857]
[1731721272051,0.10992097,91224.0,91223.0,0.000857]
[1731721272326,0.03332097,91224.0,91223.0,0.110478]
[1731721272742,0.14238352,91224.0,91223.0,0.000857]
[1731721273597,0.27118352,91224.0,91223.0,0.000857]
[1731721274446,0.27118352,91224.0,91223.0,0.110478]
[1731721274727,0.38580352,91224.0,91223.0,0.000857]
[1731721275182,0.40498218,91224.0,91223.0,0.000857]
[1731721275812,0.40998218,91224.0,91223.0,0.000857]
[1731721276885,0.29536218,91224.0,91223.0,0.000857]
[1731721277114,0.29036218,91224.0,91223.0,0.000857]
[1731721277366,0.29536218,91224.0,91223.0,0.000857]
[1731721277573,0.40998218,91224.0,91223.0,0.000857]
[1731721277982,0.39998218,91224.0,91223.0,0.000857]
[1731721278412,0.24416298,91224.0,91223.0,0.000857]
[1731721279039,0.22498352,91224.0,91223.0,0.000857]
[1731721279730,0.22498352,91224.0,91223.0,0.110478]
[1731721279731,0.22520092,91224.0,91223.0,0.110478]
[1731721279932,0.22520092,91224.0,91223.0,0.000857]
[1731721280152,0.22520092,91224.0,91223.0,0.110478]
[1731721280807,0.14260092,91224.0,91223.0,0.110478]
[1731721281166,0.14260092,91224.0,91223.0,0.000857]
[1731721281372,0.14260092,91224.0,91223.0,0.110478]
[1731721281619,0.03353837,91224.0,91223.0,0.110478]
[1731721282168,0.00992887,91224.0,91223.0,0.110478]
[1731721282372,0.0017146,91224.0,91223.0,0.110478]
[1731721285471,0.0253241,91224.0,91223.0,0.110478]
[1731721285677,0.1079241,91224.0,91223.0,0.000857]
[1731721286060,0.11624944,91224.0,91223.0,0.000857]
[1731721286923,0.11598566,91224.0,91223.0,0.000857]
[1731721287333,0.22504821,91224.0,91223.0,0.000857]
[1731721292130,0.33466821,91224.0,91223.0,0.000857]
[1731721292331,0.0006095,91218.0,91217.0,0.109628]
[1731721292948,0.00677642,91218.0,91217.0,0.109628]
[1731721293155,0.00677642,91218.0,91207.0,0.000857]
[1731721293156,0.0006095,91218.0,91207.0,0.000857]
[1731721293359,0.0006095,91216.0,91207.0,0.000857]
[1731721293578,0.0006095,91216.0,91215.0,0.109631]
[1731721297118,0.0006095,91214.0,91207.0,0.000857]
[1731721297335,0.0006095,91214.0,91207.0,0.100857]
[1731721297552,0.0006095,91214.0,91213.0,0.109633]
[1731721297858,0.0006095,91214.0,91207.0,0.100857]
[1731721297859,0.2141485,91208.0,91207.0,0.000857]
[1731721298280,0.1045095,91208.0,91207.0,0.000857]
[1731721300471,0.1045095,91208.0,91207.0,0.110497]
[1731721301327,0.1045095,91208.0,91207.0,0.105497]
[1731721301796,0.1045095,91208.0,91205.0,0.109642]
[1731721302038,0.1045095,91208.0,91201.0,0.219295]
[1731721302039,0.023,91207.0,91206.0,0.109641]
[1731721303427,0.023,91207.0,91190.0,0.09807885]
[1731721303636,0.0006095,91193.0,91191.0,0.1]
[1731721303818,0.0006095,91193.0,91192.0,0.209658]
[1731721309864,3.8836,91398.0,91192.0,0.209658]
[1731721309865,0.0006095,91202.0,91201.0,0.109647]
[1731721310020,0.16499937,91202.0,91201.0,0.109647]
[1731721310221,0.17046944,91202.0,91201.0,0.109647]
[1731721310426,0.00607957,91202.0,91201.0,0.109647]
[1731721311328,0.0006095,91202.0,91201.0,0.109647]
[1731721313414,0.16499937,91213.0,91197.0,0.04390532]
[1731721313621,0.0006095,91211.0,91210.0,0.109637]
[1731721314045,0.0751,91215.0,91194.0,0.0043905]
[1731721314046,0.0751,91215.0,91199.0,0.0043905]
[1731721314250,0.0006095,91216.0,91215.0,0.109631]
[1731721320516,0.02910477,91216.0,91215.0,0.109631]
[1731721320945,0.0006095,91216.0,91215.0,0.109631]
[1731721324914,0.02910419,91216.0,91215.0,0.109631]
[1731721325086,0.0236095,91216.0,91215.0,0.109631]
[1731721325318,0.02910419,91216.0,91215.0,0.109631]
[1731721325720,0.0006095,91216.0,91215.0,0.109631]
[1731721326574,0.0023239,91216.0,91215.0,0.109631]
[1731721330968,0.0017144,91216.0,91215.0,0.209631]
[1731721331175,0.0017144,91216.0,91215.0,0.47257439]
[1731721331379,0.0017144,91216.0,91215.0,0.52177439]
[1731721331588,0.0017144,91216.0,91215.0,0.51478336]
[1731721332318,0.0017144,91216.0,91215.0,0.209631]
[1731721332880,0.0017144,91216.0,91215.0,0.23133186]
[1731721333524,0.0017144,91216.0,91215.0,0.32923009]
[1731721334615,0.0017144,91216.0,91215.0,0.209631]
[1731721341116,0.0023239,91216.0,91215.0,0.109631]
[1731721343996,0.0495239,91216.0,91215.0,0.109631]
[1731721344404,0.1288239,91216.0,91215.0,0.109631]
[1731721344824,0.13425959,91216.0,91215.0,0.109631]
[1731721345440,0.15725959,91216.0,91215.0,0.109631]
[1731721345647,0.0006095,91210.0,91209.0,0.219276]
[1731721345877,0.0006095,91210.0,91209.0,0.328914]
[1731721346108,0.00603583,91210.0,91209.0,0.328914]
[1731721346321,0.0006095,91210.0,91209.0,0.328914]
[1731721346546,0.0006095,91208.0,91207.0,0.0008572]
[1731721346760,0.37091105,91208.0,91207.0,0.0008572]
[1731721347168,0.37633183,91208.0,91207.0,0.0008572]
[1731721347609,0.26669283,91208.0,91207.0,0.0008572]
[1731721347809,0.13463028,91208.0,91207.0,0.1104972]
[1731721348251,0.08873028,91208.0,91207.0,0.1104972]
[1731721348397,0.0833095,91208.0,91207.0,0.1104972]
[1731721352746,0.0827,91208.0,91207.0,0.1104972]
[1731721352957,0.0833095,91208.0,91207.0,0.1104972]
[1731721354227,0.0006095,91208.0,91207.0,0.1104972]
[1731721355295,0.0844144,91216.0,91209.0,0.219276]
[1731721355541,0.0017144,91216.0,91215.0,0.109631]
[1731721356629,0.0017144,91216.0,91215.0,0.209631]
[1731721360794,0.0017144,91216.0,91215.0,0.30752114]
[1731721360999,0.0017144,91216.0,91215.0,0.30752068]
[1731721362378,0.0017144,91216.0,91215.0,0.209631]
[1731721362993,0.0023239,91216.0,91215.0,0.209631]
[1731721363174,0.0850239,91216.0,91215.0,0.209631]
[1731721363796,0.1080239,91216.0,91215.0,0.109631]
[1731721364199,0.11345935,91216.0,91215.0,0.109631]
[1731721365297,0.11345935,91216.0,91212.0,0.219267]
[1731721365497,0.0006095,91214.0,91213.0,0.109632]
[1731721365848,0.02904183,91214.0,91213.0,0.109632]
[1731721369280,0.02904183,91214.0,91201.0,0.04558819]
[1731721369281,0.0006095,91208.0,91204.0,0.438574]
[1731721369703,0.02903248,91208.0,91204.0,0.438574]
[1731721369922,0.0236095,91208.0,91207.0,0.1104972]
[1731721370189,0.02903248,91208.0,91207.0,0.1104972]
[1731721378595,0.15753248,91208.0,91207.0,0.1104972]
[1731721382394,0.15753248,91208.0,91207.0,0.0008572]
[1731721382624,0.15753248,91208.0,91207.0,0.1104972]
[1731721386578,0.15924688,91208.0,91207.0,0.1104972]
[1731721389967,0.15924688,91208.0,91207.0,0.0008572]
[1731721389968,0.26830943,91208.0,91207.0,0.0008572]
[1731721390180,0.38294843,91208.0,91207.0,0.0008572]
[1731721391822,0.26830943,91208.0,91207.0,0.0008572]
[1731721392031,0.26830943,91208.0,91207.0,0.1104972]
[1731721397451,0.26288645,91208.0,91207.0,0.1104972]